{"text_format":"1","workbook":"xlsx","n_sheets":13,"sheets":["Merge","Missoula","Billings","Bozeman","Butte","Great Falls","Helena","Kalispell","Mile City","Polson","Hamilton","Havre","Future"],"not_rendered":{"charts":0,"images":0,"macros":1,"external_links":0,"defined_names":0,"comments":0,"pivot_tables":0},"unopened":[],"bounds":{"document_bytes":16777216,"sheet_cells":100000,"rows_first":2000,"rows_last":500,"rows_between":2000,"halvings":0,"cell_chars":16384,"cell_head_chars":4096},"cells_cut":0,"cells_raw":0,"read":"whole","date_system":"1900"}

{"sheet":"Merge","index":0,"n_rows":12,"n_cols":1,"rows_kept":12,"cut":false,"hidden":false,"merged":[]}
["Use the button below to merge all worksheets into one worksheet named \"Statewide\""]
["Please note that this will delete the existing worksheet named \"Statewide\" if it exists."]
[]
[]
[]
[]
[]
[]
[]
[]
[]
["The code for this can be found by pressing ALT plus F11."]

{"sheet":"Missoula","index":1,"n_rows":35,"n_cols":30,"rows_kept":35,"cut":false,"hidden":false,"merged":[]}
["Business General & contact Info:\nCompany Name ","New Biz","Repeat Biz","Street Address","City or Town","County","VR Office","Phone","FAX","Web Address","Biz Point of contact (POC)","Biz POC Title ","Biz POC Phone","Biz POC Email","Biz/ Industry ","Approx # of employ-ees","Approx # of hires per year","Summary of Contact: \nDate: Initial Contact","Date:  Next Mtg.  ","VR Point Of Contact ","Notes / Needs Assessment","Immediate action Items & Time Frames","Employer Info & Support Services ","Workforce Recruit-ment Asstnce ","Strategic Planning/ Economic Dvlpmnt","Untapped labor Polls Activities ","Training Srvs ","Incum-bent Worker Training ","Rapid Respns/ Biz  Down-sizing ","Planning layoff Respns "]
["EXAMPLE: PDQ Hospitality Srvs, Inc.","x",null,"EXAMPLE: 123 4th St.","Highslope","Lake County","Polson","111-111-1111","111-111-2222","www.PDQ.org","Suzy Q. DiBoss","CFO","123-456-7890","WhoIAm@whereIwork.org","Hospitality",55,"5-10","Aug 1 2016","TBD","KD McBizGal","Met w/ Suzy Q re: her Biz & hiring needs. Explained VR biz services. She needs to hire 5 Cust. Service reps in call Ctr.  ASAP in ___ location. ",null,null,"x",null,"x","x Wind-mills trng"]
[]
[]
[]
[]
[]
[]
[]
[]
[]
[]
[]
[]
[]
[]
[]
[]
[]
[]
[]
[]
[]
[]
[]
[]
[]
[]
[]
[]
[]
[]
[]
[]
[{"$f":"COUNTA(A3:A34)","v":0},null,null,null,null,null,null,null,null,null,null,null,null,null,null,{"$f":"SUM(P3:P34)","v":0},{"$f":"SUM(Q3:Q34)","v":0}]

{"sheet":"Billings","index":2,"n_rows":35,"n_cols":30,"rows_kept":35,"cut":false,"hidden":false,"merged":[]}
["Business General & contact Info:\nCompany Name ","New Biz","Repeat Biz","Street Address","City or Town","County","VR Office","Phone","FAX","Web Address","Biz Point of contact (POC)","Biz POC Title ","Biz POC Phone","Biz POC Email","Biz/ Industry ","Approx # of employ-ees","Approx # of hires per year","Summary of Contact: \nDate: Initial Contact","Date:  Next Mtg.  ","VR Point Of Contact ","Notes / Needs Assessment","Immediate action Items & Time Frames","Employer Info & Support Services ","Workforce Recruit-ment Asstnce ","Strategic Planning/ Economic Dvlpmnt","Untapped labor Polls Activities ","Training Srvs ","Incum-bent Worker Training ","Rapid Respns/ Biz  Down-sizing ","Planning layoff Respns "]
["EXAMPLE: PDQ Hospitality Srvs, Inc.","x",null,"EXAMPLE: 123 4th St.","Highslope","Lake County","Polson","111-111-1111","111-111-2222","www.PDQ.org","Suzy Q. DiBoss","CFO","123-456-7890","WhoIAm@whereIwork.org","Hospitality",55,"5-10","Aug 1 2016","TBD","KD McBizGal","Met w/ Suzy Q re: her Biz & hiring needs. Explained VR biz services. She needs to hire 5 Cust. Service reps in call Ctr.  ASAP in ___ location. ",null,null,"x",null,"x","x Wind-mills trng"]
[]
[]
[]
[]
[]
[]
[]
[]
[]
[]
[]
[]
[]
[]
[]
[]
[]
[]
[]
[]
[]
[]
[]
[]
[]
[]
[]
[]
[]
[]
[]
[]
[{"$f":"COUNTA(A3:A34)","v":0},null,null,null,null,null,null,null,null,null,null,null,null,null,null,{"$f":"SUM(P3:P34)","v":0},{"$f":"SUM(Q3:Q34)","v":0}]

{"sheet":"Bozeman","index":3,"n_rows":35,"n_cols":30,"rows_kept":35,"cut":false,"hidden":false,"merged":[]}
["Business General & contact Info:\nCompany Name ","New Biz","Repeat Biz","Street Address","City or Town","County","VR Office","Phone","FAX","Web Address","Biz Point of contact (POC)","Biz POC Title ","Biz POC Phone","Biz POC Email","Biz/ Industry ","Approx # of employ-ees","Approx # of hires per year","Summary of Contact: \nDate: Initial Contact","Date:  Next Mtg.  ","VR Point Of Contact ","Notes / Needs Assessment","Immediate action Items & Time Frames","Employer Info & Support Services ","Workforce Recruit-ment Asstnce ","Strategic Planning/ Economic Dvlpmnt","Untapped labor Polls Activities ","Training Srvs ","Incum-bent Worker Training ","Rapid Respns/ Biz  Down-sizing ","Planning layoff Respns "]
["EXAMPLE: PDQ Hospitality Srvs, Inc.","x",null,"EXAMPLE: 123 4th St.","Highslope","Lake County","Polson","111-111-1111","111-111-2222","www.PDQ.org","Suzy Q. DiBoss","CFO","123-456-7890","WhoIAm@whereIwork.org","Hospitality",55,"5-10","Aug 1 2016","TBD","KD McBizGal","Met w/ Suzy Q re: her Biz & hiring needs. Explained VR biz services. She needs to hire 5 Cust. Service reps in call Ctr.  ASAP in ___ location. ",null,null,"x",null,"x","x Wind-mills trng"]
[]
[]
[]
[]
[]
[]
[]
[]
[]
[]
[]
[]
[]
[]
[]
[]
[]
[]
[]
[]
[]
[]
[]
[]
[]
[]
[]
[]
[]
[]
[]
[]
[{"$f":"COUNTA(A3:A34)","v":0},null,null,null,null,null,null,null,null,null,null,null,null,null,null,{"$f":"SUM(P3:P34)","v":0},{"$f":"SUM(Q3:Q34)","v":0}]

{"sheet":"Butte","index":4,"n_rows":35,"n_cols":30,"rows_kept":35,"cut":false,"hidden":false,"merged":[]}
["Business General & contact Info:\nCompany Name ","New Biz","Repeat Biz","Street Address","City or Town","County","VR Office","Phone","FAX","Web Address","Biz Point of contact (POC)","Biz POC Title ","Biz POC Phone","Biz POC Email","Biz/ Industry ","Approx # of employ-ees","Approx # of hires per year","Summary of Contact: \nDate: Initial Contact","Date:  Next Mtg.  ","VR Point Of Contact ","Notes / Needs Assessment","Immediate action Items & Time Frames","Employer Info & Support Services ","Workforce Recruit-ment Asstnce ","Strategic Planning/ Economic Dvlpmnt","Untapped labor Polls Activities ","Training Srvs ","Incum-bent Worker Training ","Rapid Respns/ Biz  Down-sizing ","Planning layoff Respns "]
["EXAMPLE: PDQ Hospitality Srvs, Inc.","x",null,"EXAMPLE: 123 4th St.","Highslope","Lake County","Polson","111-111-1111","111-111-2222","www.PDQ.org","Suzy Q. DiBoss","CFO","123-456-7890","WhoIAm@whereIwork.org","Hospitality",55,"5-10","Aug 1 2016","TBD","KD McBizGal","Met w/ Suzy Q re: her Biz & hiring needs. Explained VR biz services. She needs to hire 5 Cust. Service reps in call Ctr.  ASAP in ___ location. ",null,null,"x",null,"x","x Wind-mills trng"]
[]
[]
[]
[]
[]
[]
[]
[]
[]
[]
[]
[]
[]
[]
[]
[]
[]
[]
[]
[]
[]
[]
[]
[]
[]
[]
[]
[]
[]
[]
[]
[]
[{"$f":"COUNTA(A3:A34)","v":0},null,null,null,null,null,null,null,null,null,null,null,null,null,null,{"$f":"SUM(P3:P34)","v":0},{"$f":"SUM(Q3:Q34)","v":0}]

{"sheet":"Great Falls","index":5,"n_rows":35,"n_cols":30,"rows_kept":35,"cut":false,"hidden":false,"merged":[]}
["Business General & contact Info:\nCompany Name ","New Biz","Repeat Biz","Street Address","City or Town","County","VR Office","Phone","FAX","Web Address","Biz Point of contact (POC)","Biz POC Title ","Biz POC Phone","Biz POC Email","Biz/ Industry ","Approx # of employ-ees","Approx # of hires per year","Summary of Contact: \nDate: Initial Contact","Date:  Next Mtg.  ","VR Point Of Contact ","Notes / Needs Assessment","Immediate action Items & Time Frames","Employer Info & Support Services ","Workforce Recruit-ment Asstnce ","Strategic Planning/ Economic Dvlpmnt","Untapped labor Polls Activities ","Training Srvs ","Incum-bent Worker Training ","Rapid Respns/ Biz  Down-sizing ","Planning layoff Respns "]
["EXAMPLE: PDQ Hospitality Srvs, Inc.","x",null,"EXAMPLE: 123 4th St.","Highslope","Lake County","Polson","111-111-1111","111-111-2222","www.PDQ.org","Suzy Q. DiBoss","CFO","123-456-7890","WhoIAm@whereIwork.org","Hospitality",55,"5-10","Aug 1 2016","TBD","KD McBizGal","Met w/ Suzy Q re: her Biz & hiring needs. Explained VR biz services. She needs to hire 5 Cust. Service reps in call Ctr.  ASAP in ___ location. ",null,null,"x",null,"x","x Wind-mills trng"]
[]
[]
[]
[]
[]
[]
[]
[]
[]
[]
[]
[]
[]
[]
[]
[]
[]
[]
[]
[]
[]
[]
[]
[]
[]
[]
[]
[]
[]
[]
[]
[]
[{"$f":"COUNTA(A3:A34)","v":0},null,null,null,null,null,null,null,null,null,null,null,null,null,null,{"$f":"SUM(P3:P34)","v":0},{"$f":"SUM(Q3:Q34)","v":0}]

{"sheet":"Helena","index":6,"n_rows":35,"n_cols":30,"rows_kept":35,"cut":false,"hidden":false,"merged":[]}
["Business General & contact Info:\nCompany Name ","New Biz","Repeat Biz","Street Address","City or Town","County","VR Office","Phone","FAX","Web Address","Biz Point of contact (POC)","Biz POC Title ","Biz POC Phone","Biz POC Email","Biz/ Industry ","Approx # of employ-ees","Approx # of hires per year","Summary of Contact: \nDate: Initial Contact","Date:  Next Mtg.  ","VR Point Of Contact ","Notes / Needs Assessment","Immediate action Items & Time Frames","Employer Info & Support Services ","Workforce Recruit-ment Asstnce ","Strategic Planning/ Economic Dvlpmnt","Untapped labor Polls Activities ","Training Srvs ","Incum-bent Worker Training ","Rapid Respns/ Biz  Down-sizing ","Planning layoff Respns "]
["EXAMPLE: PDQ Hospitality Srvs, Inc.","x",null,"EXAMPLE: 123 4th St.","Highslope","Lake County","Polson","111-111-1111","111-111-2222","www.PDQ.org","Suzy Q. DiBoss","CFO","123-456-7890","WhoIAm@whereIwork.org","Hospitality",55,"5-10","Aug 1 2016","TBD","KD McBizGal","Met w/ Suzy Q re: her Biz & hiring needs. Explained VR biz services. She needs to hire 5 Cust. Service reps in call Ctr.  ASAP in ___ location. ",null,null,"x",null,"x","x Wind-mills trng"]
[]
[]
[]
[]
[]
[]
[]
[]
[]
[]
[]
[]
[]
[]
[]
[]
[]
[]
[]
[]
[]
[]
[]
[]
[]
[]
[]
[]
[]
[]
[]
[]
[{"$f":"COUNTA(A3:A34)","v":0},null,null,null,null,null,null,null,null,null,null,null,null,null,null,{"$f":"SUM(P3:P34)","v":0},{"$f":"SUM(Q3:Q34)","v":0}]

{"sheet":"Kalispell","index":7,"n_rows":35,"n_cols":30,"rows_kept":35,"cut":false,"hidden":false,"merged":[]}
["Business General & contact Info:\nCompany Name ","New Biz","Repeat Biz","Street Address","City or Town","County","VR Office","Phone","FAX","Web Address","Biz Point of contact (POC)","Biz POC Title ","Biz POC Phone","Biz POC Email","Biz/ Industry ","Approx # of employ-ees","Approx # of hires per year","Summary of Contact: \nDate: Initial Contact","Date:  Next Mtg.  ","VR Point Of Contact ","Notes / Needs Assessment","Immediate action Items & Time Frames","Employer Info & Support Services ","Workforce Recruit-ment Asstnce ","Strategic Planning/ Economic Dvlpmnt","Untapped labor Polls Activities ","Training Srvs ","Incum-bent Worker Training ","Rapid Respns/ Biz  Down-sizing ","Planning layoff Respns "]
["EXAMPLE: PDQ Hospitality Srvs, Inc.","x",null,"EXAMPLE: 123 4th St.","Highslope","Lake County","Polson","111-111-1111","111-111-2222","www.PDQ.org","Suzy Q. DiBoss","CFO","123-456-7890","WhoIAm@whereIwork.org","Hospitality",55,"5-10","Aug 1 2016","TBD","KD McBizGal","Met w/ Suzy Q re: her Biz & hiring needs. Explained VR biz services. She needs to hire 5 Cust. Service reps in call Ctr.  ASAP in ___ location. ",null,null,"x",null,"x","x Wind-mills trng"]
[]
[]
[]
[]
[]
[]
[]
[]
[]
[]
[]
[]
[]
[]
[]
[]
[]
[]
[]
[]
[]
[]
[]
[]
[]
[]
[]
[]
[]
[]
[]
[]
[{"$f":"COUNTA(A3:A34)","v":0},null,null,null,null,null,null,null,null,null,null,null,null,null,null,{"$f":"SUM(P3:P34)","v":0},{"$f":"SUM(Q3:Q34)","v":0}]

{"sheet":"Mile City","index":8,"n_rows":35,"n_cols":30,"rows_kept":35,"cut":false,"hidden":false,"merged":[]}
["Business General & contact Info:\nCompany Name ","New Biz","Repeat Biz","Street Address","City or Town","County","VR Office","Phone","FAX","Web Address","Biz Point of contact (POC)","Biz POC Title ","Biz POC Phone","Biz POC Email","Biz/ Industry ","Approx # of employ-ees","Approx # of hires per year","Summary of Contact: \nDate: Initial Contact","Date:  Next Mtg.  ","VR Point Of Contact ","Notes / Needs Assessment","Immediate action Items & Time Frames","Employer Info & Support Services ","Workforce Recruit-ment Asstnce ","Strategic Planning/ Economic Dvlpmnt","Untapped labor Polls Activities ","Training Srvs ","Incum-bent Worker Training ","Rapid Respns/ Biz  Down-sizing ","Planning layoff Respns "]
["EXAMPLE: PDQ Hospitality Srvs, Inc.","x",null,"EXAMPLE: 123 4th St.","Highslope","Lake County","Polson","111-111-1111","111-111-2222","www.PDQ.org","Suzy Q. DiBoss","CFO","123-456-7890","WhoIAm@whereIwork.org","Hospitality",55,"5-10","Aug 1 2016","TBD","KD McBizGal","Met w/ Suzy Q re: her Biz & hiring needs. Explained VR biz services. She needs to hire 5 Cust. Service reps in call Ctr.  ASAP in ___ location. ",null,null,"x",null,"x","x Wind-mills trng"]
[]
[]
[]
[]
[]
[]
[]
[]
[]
[]
[]
[]
[]
[]
[]
[]
[]
[]
[]
[]
[]
[]
[]
[]
[]
[]
[]
[]
[]
[]
[]
[]
[{"$f":"COUNTA(A3:A34)","v":0},null,null,null,null,null,null,null,null,null,null,null,null,null,null,{"$f":"SUM(P3:P34)","v":0},{"$f":"SUM(Q3:Q34)","v":0}]

{"sheet":"Polson","index":9,"n_rows":35,"n_cols":30,"rows_kept":35,"cut":false,"hidden":false,"merged":[]}
["Business General & contact Info:\nCompany Name ","New Biz","Repeat Biz","Street Address","City or Town","County","VR Office","Phone","FAX","Web Address","Biz Point of contact (POC)","Biz POC Title ","Biz POC Phone","Biz POC Email","Biz/ Industry ","Approx # of employ-ees","Approx # of hires per year","Summary of Contact: \nDate: Initial Contact","Date:  Next Mtg.  ","VR Point Of Contact ","Notes / Needs Assessment","Immediate action Items & Time Frames","Employer Info & Support Services ","Workforce Recruit-ment Asstnce ","Strategic Planning/ Economic Dvlpmnt","Untapped labor Polls Activities ","Training Srvs ","Incum-bent Worker Training ","Rapid Respns/ Biz  Down-sizing ","Planning layoff Respns "]
["EXAMPLE: PDQ Hospitality Srvs, Inc.","x",null,"EXAMPLE: 123 4th St.","Highslope","Lake County","Polson","111-111-1111","111-111-2222","www.PDQ.org","Suzy Q. DiBoss","CFO","123-456-7890","WhoIAm@whereIwork.org","Hospitality",55,"5-10","Aug 1 2016","TBD","KD McBizGal","Met w/ Suzy Q re: her Biz & hiring needs. Explained VR biz services. She needs to hire 5 Cust. Service reps in call Ctr.  ASAP in ___ location. ",null,null,"x",null,"x","x Wind-mills trng"]
[]
[]
[]
[]
[]
[]
[]
[]
[]
[]
[]
[]
[]
[]
[]
[]
[]
[]
[]
[]
[]
[]
[]
[]
[]
[]
[]
[]
[]
[]
[]
[]
[{"$f":"COUNTA(A3:A34)","v":0},null,null,null,null,null,null,null,null,null,null,null,null,null,null,{"$f":"SUM(P3:P34)","v":0},{"$f":"SUM(Q3:Q34)","v":0}]

{"sheet":"Hamilton","index":10,"n_rows":35,"n_cols":30,"rows_kept":35,"cut":false,"hidden":false,"merged":[]}
["Business General & contact Info:\nCompany Name ","New Biz","Repeat Biz","Street Address","City or Town","County","VR Office","Phone","FAX","Web Address","Biz Point of contact (POC)","Biz POC Title ","Biz POC Phone","Biz POC Email","Biz/ Industry ","Approx # of employ-ees","Approx # of hires per year","Summary of Contact: \nDate: Initial Contact","Date:  Next Mtg.  ","VR Point Of Contact ","Notes / Needs Assessment","Immediate action Items & Time Frames","Employer Info & Support Services ","Workforce Recruit-ment Asstnce ","Strategic Planning/ Economic Dvlpmnt","Untapped labor Polls Activities ","Training Srvs ","Incum-bent Worker Training ","Rapid Respns/ Biz  Down-sizing ","Planning layoff Respns "]
["EXAMPLE: PDQ Hospitality Srvs, Inc.","x",null,"EXAMPLE: 123 4th St.","Highslope","Lake County","Polson","111-111-1111","111-111-2222","www.PDQ.org","Suzy Q. DiBoss","CFO","123-456-7890","WhoIAm@whereIwork.org","Hospitality",55,"5-10","Aug 1 2016","TBD","KD McBizGal","Met w/ Suzy Q re: her Biz & hiring needs. Explained VR biz services. She needs to hire 5 Cust. Service reps in call Ctr.  ASAP in ___ location. ",null,null,"x",null,"x","x Wind-mills trng"]
[]
[]
[]
[]
[]
[]
[]
[]
[]
[]
[]
[]
[]
[]
[]
[]
[]
[]
[]
[]
[]
[]
[]
[]
[]
[]
[]
[]
[]
[]
[]
[]
[{"$f":"COUNTA(A3:A34)","v":0},null,null,null,null,null,null,null,null,null,null,null,null,null,null,{"$f":"SUM(P3:P34)","v":0},{"$f":"SUM(Q3:Q34)","v":0}]

{"sheet":"Havre","index":11,"n_rows":35,"n_cols":30,"rows_kept":35,"cut":false,"hidden":false,"merged":[]}
["Business General & contact Info:\nCompany Name ","New Biz","Repeat Biz","Street Address","City or Town","County","VR Office","Phone","FAX","Web Address","Biz Point of contact (POC)","Biz POC Title ","Biz POC Phone","Biz POC Email","Biz/ Industry ","Approx # of employ-ees","Approx # of hires per year","Summary of Contact: \nDate: Initial Contact","Date:  Next Mtg.  ","VR Point Of Contact ","Notes / Needs Assessment","Immediate action Items & Time Frames","Employer Info & Support Services ","Workforce Recruit-ment Asstnce ","Strategic Planning/ Economic Dvlpmnt","Untapped labor Polls Activities ","Training Srvs ","Incum-bent Worker Training ","Rapid Respns/ Biz  Down-sizing ","Planning layoff Respns "]
["EXAMPLE: PDQ Hospitality Srvs, Inc.","x",null,"EXAMPLE: 123 4th St.","Highslope","Lake County","Polson","111-111-1111","111-111-2222","www.PDQ.org","Suzy Q. DiBoss","CFO","123-456-7890","WhoIAm@whereIwork.org","Hospitality",55,"5-10","Aug 1 2016","TBD","KD McBizGal","Met w/ Suzy Q re: her Biz & hiring needs. Explained VR biz services. She needs to hire 5 Cust. Service reps in call Ctr.  ASAP in ___ location. ",null,null,"x",null,"x","x Wind-mills trng"]
[]
[]
[]
[]
[]
[]
[]
[]
[]
[]
[]
[]
[]
[]
[]
[]
[]
[]
[]
[]
[]
[]
[]
[]
[]
[]
[]
[]
[]
[]
[]
[]
[{"$f":"COUNTA(A3:A34)","v":0},null,null,null,null,null,null,null,null,null,null,null,null,null,null,{"$f":"SUM(P3:P34)","v":0},{"$f":"SUM(Q3:Q34)","v":0}]

{"sheet":"Future","index":12,"n_rows":35,"n_cols":30,"rows_kept":35,"cut":false,"hidden":false,"merged":[]}
["Business General & contact Info:\nCompany Name ","New Biz","Repeat Biz","Street Address","City or Town","County","VR Office","Phone","FAX","Web Address","Biz Point of contact (POC)","Biz POC Title ","Biz POC Phone","Biz POC Email","Biz/ Industry ","Approx # of employ-ees","Approx # of hires per year","Summary of Contact: \nDate: Initial Contact","Date:  Next Mtg.  ","VR Point Of Contact ","Notes / Needs Assessment","Immediate action Items & Time Frames","Employer Info & Support Services ","Workforce Recruit-ment Asstnce ","Strategic Planning/ Economic Dvlpmnt","Untapped labor Polls Activities ","Training Srvs ","Incum-bent Worker Training ","Rapid Respns/ Biz  Down-sizing ","Planning layoff Respns "]
["EXAMPLE: PDQ Hospitality Srvs, Inc.","x",null,"EXAMPLE: 123 4th St.","Highslope","Lake County","Polson","111-111-1111","111-111-2222","www.PDQ.org","Suzy Q. DiBoss","CFO","123-456-7890","WhoIAm@whereIwork.org","Hospitality",55,"5-10","Aug 1 2016","TBD","KD McBizGal","Met w/ Suzy Q re: her Biz & hiring needs. Explained VR biz services. She needs to hire 5 Cust. Service reps in call Ctr.  ASAP in ___ location. ",null,null,"x",null,"x","x Wind-mills trng"]
[]
[]
[]
[]
[]
[]
[]
[]
[]
[]
[]
[]
[]
[]
[]
[]
[]
[]
[]
[]
[]
[]
[]
[]
[]
[]
[]
[]
[]
[]
[]
[]
[{"$f":"COUNTA(A3:A34)","v":0},null,null,null,null,null,null,null,null,null,null,null,null,null,null,{"$f":"SUM(P3:P34)","v":0},{"$f":"SUM(Q3:Q34)","v":0}]